bitfinex/quotes_ETHUSD_20260120
["timestamp","ask_amount","ask_price","bid_price","bid_amount"]
[1768952569011,0.91140508,2942.5,2941.6,0.65586765]
[1768952569386,0.001,2942.6,2942.0,0.65386765]
[1768952569996,0.91240508,2942.6,2942.0,0.65386765]
[1768952570206,0.001,2942.6,2942.0,0.65386765]
[1768952570978,0.001,2942.6,2942.2,0.65386765]
[1768952571305,0.001,2942.6,2942.2,1.34351247]
[1768952571706,0.91140508,2943.2,2942.4,0.65286765]
[1768952571922,0.001,2943.3,2942.7,0.97495317]
[1768952572134,0.91140508,2943.2,2942.5,7.21753369]
[1768952573008,0.91140508,2943.2,2942.5,0.97495317]
[1768952573878,0.001,2943.3,2942.5,0.97495317]
[1768952574083,0.91140508,2943.8,2942.6,0.97495317]
[1768952574390,0.91140508,2943.8,2942.5,6.79683578]
[1768952574391,0.91140508,2944.2,2942.9,0.97495317]
[1768952574703,0.91140508,2944.4,2943.1,0.97495317]
[1768952574903,0.91140508,2944.3,2943.3,0.97495317]
[1768952575792,0.91140508,2944.3,2943.3,0.53]
[1768952575994,0.91140508,2944.3,2943.3,1.50495317]
[1768952576193,0.91140508,2944.3,2943.4,0.97495317]
[1768952577393,0.91140508,2944.5,2943.4,0.97495317]
[1768952577709,4.84633856,2944.7,2943.6,0.97495317]
[1768952578183,4.84633856,2944.7,2943.6,0.53]
[1768952578184,0.91140508,2944.6,2943.6,0.53]
[1768952578383,0.91140508,2944.6,2943.7,0.97495317]
[1768952578897,1.45040508,2944.7,2943.7,0.97495317]
[1768952579084,1.45040508,2944.7,2943.8,0.97495317]
[1768952580518,0.91140508,2944.9,2943.9,0.97495317]
[1768952580814,0.91140508,2945.1,2944.0,0.97495317]
[1768952580986,0.43067768,2945.0,2944.0,0.97495317]
[1768952581187,0.001,2944.4,2944.0,0.97495317]
[1768952581394,1.34208276,2945.0,2944.0,0.97495317]
[1768952581613,1.34208276,2945.0,2943.8,0.97495317]
[1768952581614,0.91140508,2944.9,2943.8,0.97495317]
[1768952581790,0.91140508,2944.7,2943.4,1.50495317]
[1768952582184,0.91140508,2944.7,2943.5,0.97495317]
[1768952582585,0.91140508,2944.7,2943.4,0.53]
[1768952582586,0.91140508,2944.7,2943.3,1.50495317]
[1768952583289,0.91140508,2944.5,2943.3,0.97495317]
[1768952585415,0.91140508,2944.3,2943.1,0.97495317]
[1768952586416,0.91140508,2944.3,2943.2,3.39764708]
[1768952586623,1.45040508,2944.2,2942.4,0.97495317]
[1768952586806,0.91140508,2943.9,2942.4,0.97495317]
[1768952587121,0.91140508,2943.7,2942.4,0.97495317]
[1768952587318,0.91140508,2943.5,2942.4,0.97495317]
[1768952587517,0.91140508,2943.4,2942.4,0.97495317]
[1768952587693,0.4308763,2943.3,2942.4,0.97495317]
[1768952588018,1.34228138,2943.3,2942.4,0.97495317]
[1768952588216,0.91140508,2943.2,2942.4,0.97495317]
[1768952589412,0.91140508,2943.5,2942.4,0.97495317]
[1768952591532,0.91140508,2943.5,2942.5,0.97495317]
[1768952591733,0.91140508,2944.0,2942.7,0.97495317]
[1768952592703,4.30794413,2944.2,2942.7,0.97495317]
[1768952592910,4.84665515,2944.5,2942.7,0.97495317]
[1768952593109,0.91140508,2944.4,2942.7,0.97495317]
[1768952593323,1.3960706,2944.4,2942.7,0.97495317]
[1768952593714,4.79236133,2944.4,2942.9,0.97495317]
[1768952593909,0.91140508,2944.1,2942.9,0.97495317]
[1768952595619,0.97588758,2943.9,2942.6,0.532]
[1768952595828,0.97588758,2943.8,2942.7,0.93080237]
[1768952596505,0.97588758,2943.8,2942.8,0.93080237]
[1768952598424,0.97588758,2943.8,2942.9,0.93080237]
[1768952599008,0.539,2944.1,2942.9,0.93080237]
[1768952599208,0.97588758,2944.0,2942.9,0.93080237]
[1768952599537,0.97588758,2944.0,2942.8,0.53]
[1768952599707,7.33229438,2944.1,2942.8,0.53]
[1768952599708,0.97588758,2943.8,2942.8,0.53]
[1768952600210,0.97588758,2943.8,2942.8,0.93080237]
[1768952600630,0.97588758,2943.7,2942.7,0.48611621]
[1768952600831,0.97588758,2943.7,2942.6,0.93280237]
[1768952601922,1.80670578,2943.9,2942.9,0.93080237]
[1768952602131,0.97588758,2943.9,2942.9,0.93080237]
[1768952602436,0.97588758,2943.8,2942.7,0.93080237]
[1768952603614,0.97588758,2943.8,2942.6,0.002]
[1768952603811,3.3970853,2943.7,2942.6,0.002]
[1768952604040,0.97588758,2943.5,2942.6,0.002]
[1768952605351,0.97588758,2943.5,2942.8,0.002]
[1768952605560,0.97588758,2943.4,2942.8,0.002]
[1768952605929,3.39752579,2943.4,2942.8,0.002]
[1768952606115,0.97588758,2943.3,2942.8,0.002]
[1768952606315,0.97588758,2943.1,2942.8,0.002]
[1768952607662,0.97588758,2943.1,2942.6,0.002]
[1768952608015,0.97588758,2942.9,2942.5,0.002]
[1768952608211,0.97588758,2942.9,2942.4,0.002]
[1768952608460,0.97588758,2942.9,2942.3,0.002]
[1768952608647,0.97588758,2942.7,2942.3,0.002]
[1768952609444,0.97588758,2942.9,2942.3,0.002]
[1768952609748,1.51488758,2942.9,2942.3,0.002]
[1768952610113,0.97588758,2943.1,2942.3,0.93280237]
[1768952610850,0.97588758,2943.3,2942.3,0.93280237]
[1768952611037,0.97588758,2943.5,2942.3,0.93280237]
[1768952611439,0.97588758,2943.7,2942.3,0.93280237]
[1768952611644,0.97588758,2943.7,2942.4,0.93080237]
[1768952612147,0.97588758,2943.7,2942.6,0.93080237]
[1768952612347,0.539,2943.9,2942.8,0.93080237]
[1768952612348,0.97588758,2943.9,2942.8,0.93080237]
[1768952614059,0.97588758,2944.1,2942.8,0.93080237]
[1768952614229,0.97588758,2944.1,2942.7,0.53]
[1768952614230,0.97588758,2944.1,2943.0,0.93080237]
[1768952614424,0.97588758,2944.0,2943.0,1.36368348]
[1768952615430,0.97588758,2944.0,2943.1,0.93080237]
[1768952616056,0.97588758,2944.3,2943.1,0.93080237]
[1768952616553,0.97588758,2944.2,2943.2,0.93080237]
[1768952618630,0.97588758,2944.1,2943.2,0.93080237]
[1768952618847,1.41313016,2944.0,2943.2,0.93080237]
[1768952619652,0.97588758,2944.1,2943.2,0.93080237]
[1768952619854,0.97588758,2944.1,2943.3,0.93080237]
[1768952620553,0.97588758,2944.1,2943.3,3.39753925]
[1768952620737,0.97588758,2944.1,2943.4,0.93080237]
[1768952621933,0.2335703,2945.0,2943.4,0.93080237]
[1768952621934,0.97588758,2945.0,2943.4,0.93080237]
[1768952622154,0.97588758,2944.7,2943.6,0.93080237]
[1768952622333,18.118541,2944.6,2943.5,0.43282733]
[1768952622520,0.97588758,2944.5,2943.3,0.93080237]
[1768952622834,0.97588758,2944.5,2943.4,0.93080237]
[1768952623037,0.97588758,2944.5,2943.5,0.93080237]
[1768952623626,0.97588758,2944.5,2943.6,0.93080237]
[1768952626324,0.97588758,2944.5,2943.7,0.91331689]
[1768952629257,0.001,2944.3,2943.7,0.91331689]
[1768952631042,0.001,2944.3,2943.8,0.91331689]
[1768952633442,0.96702438,2944.3,2943.5,0.53]
[1768952633761,0.96702438,2944.3,2943.6,0.91331689]
[1768952633956,0.96702438,2944.3,2943.7,0.91331689]
[1768952635966,0.001,2944.3,2943.8,0.91331689]
[1768952638675,0.001,2944.3,2943.9,0.91331689]
[1768952639343,0.001,2944.3,2943.7,0.53]
[1768952639344,0.96602438,2944.2,2943.7,0.53]
[1768952639578,0.001,2944.3,2943.8,0.91331689]
[1768952640445,0.96702438,2944.3,2943.8,0.91331689]
[1768952641447,0.001,2944.1,2943.8,0.91331689]
[1768952647276,0.001,2944.1,2943.9,0.91331689]
[1768952647479,0.001,2944.3,2943.9,0.91331689]
[1768952650089,0.96602438,2944.6,2944.0,0.91331689]
[1768952651378,0.96602438,2944.6,2944.1,0.91331689]
[1768952652190,0.96602438,2945.0,2944.2,0.91331689]
[1768952652812,7.72516667,2945.4,2944.5,0.91331689]
[1768952652813,0.96602438,2945.3,2944.5,0.91331689]
[1768952653095,0.96602438,2945.3,2944.6,0.91331689]
[1768952655390,0.90562872,2945.6,2944.8,0.90782304]
[1768952656110,0.90562872,2945.6,2945.1,0.90782304]
[1768952656328,0.90562872,2945.6,2945.0,6.23634783]
[1768952656596,0.001,2945.7,2944.6,3.39603093]
[1768952656597,0.90562872,2946.0,2945.3,6.23634783]
[1768952656914,0.90562872,2946.0,2945.3,7.14417087]
[1768952657824,0.90562872,2946.0,2945.4,0.90782304]
[1768952658109,0.90562872,2946.0,2945.3,6.23634783]
[1768952658110,0.90562872,2946.4,2945.6,0.90782304]
[1768952660110,0.90562872,2946.4,2945.4,1.43882304]
[1768952660302,0.90562872,2946.4,2945.0,0.90782304]
[1768952660498,0.90562872,2946.2,2944.4,0.90782304]
[1768952660702,0.90562872,2946.2,2944.8,0.90782304]
[1768952661037,0.90562872,2946.0,2944.8,0.90782304]
[1768952661181,0.90562872,2946.0,2945.1,0.90782304]
[1768952661382,0.90562872,2946.0,2944.9,0.90782304]
[1768952661582,0.90562872,2945.9,2945.0,0.43036394]
[1768952661822,0.90562872,2945.9,2945.0,1.33818698]
[1768952661981,0.90562872,2945.9,2945.1,0.90782304]
[1768952662724,0.90562872,2946.1,2945.1,0.90782304]
[1768952663017,0.90562872,2946.0,2944.7,3.3958834]
[1768952663329,0.90562872,2946.0,2944.8,0.90782304]
[1768952663728,0.90562872,2945.9,2944.8,3.39581514]
[1768952664028,0.90562872,2945.9,2944.9,0.90782304]
[1768952664514,0.90562872,2945.9,2944.8,0.90782304]
[1768952664714,0.90562872,2945.9,2944.9,0.90782304]
[1768952664926,0.90562872,2945.9,2945.1,0.90782304]
[1768952666077,0.90562872,2945.9,2945.0,0.002]
[1768952666583,0.539,2946.2,2945.0,0.002]
[1768952666584,0.90562872,2945.7,2945.0,0.002]
[1768952666990,0.90562872,2945.7,2945.0,0.90982304]
[1768952668012,0.90562872,2945.7,2945.1,0.4305518]
[1768952668201,0.90562872,2945.7,2945.0,0.90982304]
[1768952668398,0.001,2945.8,2945.0,0.90982304]
[1768952668913,0.90662872,2945.8,2945.0,0.90982304]
[1768952669381,0.90562872,2945.7,2945.0,0.002]
[1768952669578,3.39569397,2945.8,2945.0,0.002]
[1768952669579,0.90562872,2945.5,2945.0,0.002]
[1768952669784,0.90562872,2945.5,2945.0,0.90982304]
[1768952669982,0.90562872,2945.7,2945.0,0.90982304]
[1768952671807,0.90562872,2945.7,2945.1,0.90782304]
[1768952673501,0.001,2945.8,2945.1,0.90782304]
[1768952673821,0.90662872,2945.8,2945.1,0.90782304]
[1768952675406,0.90562872,2945.7,2945.0,0.002]
[1768952675712,0.90562872,2945.5,2945.0,0.002]
[1768952677833,0.90562872,2945.3,2945.0,0.002]
[1768952679733,0.001,2945.8,2945.1,0.90782304]
[1768952679960,0.90662872,2945.8,2945.1,0.90782304]
[1768952680155,0.001,2945.8,2945.1,0.90782304]
[1768952680338,0.90662872,2945.8,2945.2,1.62201279]
[1768952681966,0.90662872,2945.8,2945.3,0.90782304]
[1768952683167,0.90662872,2945.8,2945.2,0.71418975]
[1768952683462,0.90662872,2945.8,2945.2,1.62201279]
[1768952683958,0.80662872,2945.8,2945.2,1.62201279]
[1768952684655,0.80662872,2945.8,2945.3,0.94360589]
[1768952684868,0.80662872,2945.8,2945.3,1.44893083]
[1768952685158,0.80662872,2945.8,2945.2,0.71418975]
[1768952685662,0.80662872,2945.8,2945.2,1.673317]
[1768952686665,0.80662872,2945.8,2945.3,0.95912725]
[1768952687162,0.539,2946.0,2945.3,0.95912725]
[1768952687541,0.98730172,2945.9,2945.3,0.95912725]
[1768952687742,0.98730172,2945.9,2945.4,1.46599163]
[1768952687943,0.98730172,2945.9,2945.5,0.95912725]
[1768952688555,1.52630172,2946.1,2945.5,0.95912725]
[1768952689964,0.98730172,2946.0,2945.5,0.95912725]
[1768952690944,0.001,2945.8,2945.5,0.95912725]
[1768952691141,0.001,2945.8,2945.5,1.44524913]
[1768952691761,0.001,2945.8,2945.6,0.95912725]
[1768952692160,0.98830172,2945.8,2945.5,0.48612188]
[1768952692355,0.98830172,2945.8,2945.4,0.95912725]
[1768952692753,0.98830172,2945.8,2945.2,0.71618975]
[1768952692956,0.98730172,2945.4,2944.8,0.002]
[1768952693152,0.98730172,2945.3,2944.8,0.002]
[1768952696338,0.98730172,2945.3,2944.3,0.95912725]
[1768952696673,0.98730172,2945.2,2944.3,0.95912725]
[1768952697170,0.98730172,2945.1,2944.3,0.95912725]
[1768952697376,0.98730172,2944.9,2944.3,0.95912725]
[1768952697735,0.98730172,2944.8,2944.0,0.002]
[1768952698966,0.98730172,2944.7,2944.0,0.002]
[1768952700284,0.98730172,2944.5,2944.0,0.002]
[1768952700577,0.98730172,2944.3,2943.8,0.002]
[1768952700946,0.98730172,2944.3,2943.6,0.002]
[1768952701370,0.98730172,2944.1,2943.6,0.002]
[1768952701768,0.128,2945.6,2943.6,0.96112725]
[1768952701970,0.98730172,2945.5,2944.8,6.23207445]
[1768952702168,0.98730172,2945.5,2944.7,0.95912725]
[1768952702574,0.539,2945.7,2944.7,0.95912725]
[1768952702991,0.98830172,2945.8,2944.4,0.531]
[1768952702992,0.001,2945.8,2945.0,0.95912725]
[1768952703982,0.001,2945.6,2945.0,0.95912725]
[1768952704565,0.98830172,2945.6,2944.8,0.95912725]
[1768952705175,0.98730172,2945.5,2944.6,0.95912725]
[1768952705389,0.98730172,2945.5,2944.2,0.002]
[1768952705580,7.32981962,2945.6,2944.2,0.002]
[1768952705581,0.98730172,2945.3,2944.2,0.002]
[1768952706169,0.98730172,2945.3,2944.2,0.96112725]
[1768952707262,0.83171213,2945.4,2944.2,0.96112725]
[1768952707463,4.92227747,2945.6,2944.2,0.96112725]
[1768952707658,0.98730172,2945.5,2944.2,0.96112725]
[1768952707894,0.98730172,2945.5,2944.2,0.002]
[1768952708068,0.98730172,2945.3,2944.2,0.002]
[1768952708594,0.98730172,2945.1,2944.2,0.002]
[1768952708804,0.98730172,2944.9,2944.2,0.002]
[1768952709020,0.98730172,2944.9,2944.0,0.002]
[1768952709322,0.98730172,2944.7,2943.6,0.002]
[1768952709470,0.98730172,2944.5,2943.6,0.96112725]
[1768952709678,1.31689344,2944.6,2943.6,0.96112725]
[1768952709871,0.98730172,2944.5,2943.6,0.96112725]
[1768952710875,0.98730172,2944.5,2943.6,0.002]
[1768952711287,1.31689344,2944.6,2943.6,0.002]
[1768952711288,0.98730172,2944.3,2943.6,0.002]
[1768952711474,1.42565966,2944.2,2943.6,0.002]
[1768952712576,0.98730172,2944.1,2943.6,0.002]
[1768952712894,0.98730172,2944.0,2943.1,0.95912725]
[1768952713086,0.98730172,2944.0,2942.9,0.95912725]
[1768952713286,0.98730172,2943.8,2942.9,0.95912725]
[1768952713605,1.42571734,2943.8,2942.9,0.95912725]
[1768952713791,0.98730172,2943.7,2942.9,0.95912725]
[1768952714330,0.98730172,2943.7,2942.8,0.002]
[1768952714504,0.43841562,2943.8,2942.8,0.002]
[1768952714505,0.98730172,2943.5,2942.8,0.002]
[1768952715081,0.98730172,2943.5,2942.6,0.002]
[1768952715391,0.95001857,2943.3,2942.6,0.002]
[1768952715606,0.95001857,2943.1,2942.5,0.002]
[1768952716126,0.95001857,2943.0,2942.5,0.002]
[1768952716820,0.95001857,2943.0,2942.3,0.002]
[1768952717309,0.95001857,2943.0,2942.0,6.11e-06]
[1768952717476,0.95001857,2943.0,2942.0,0.95015423]
[1768952717675,0.48878681,2942.9,2942.0,0.95015423]
[1768952717904,1.43880538,2942.9,2942.0,0.95015423]
[1768952718107,0.95001857,2942.9,2942.0,0.95015423]
[1768952722105,6.33,2943.3,2942.0,0.95015423]
[1768952722106,9.72757344,2943.3,2942.0,0.95015423]
[1768952722421,9.72757344,2943.3,2942.1,0.95014812]
[1768952722422,7.28001857,2943.3,2942.1,0.95014812]
[1768952722580,3.39711831,2943.7,2942.3,0.95014812]
[1768952722780,5.32543439,2943.8,2942.4,0.95014812]
[1768952722977,0.95001857,2943.7,2942.4,0.95014812]
[1768952723997,0.95001857,2943.7,2942.5,0.95014812]
[1768952724186,0.95001857,2943.7,2942.4,3.39857252]
[1768952724187,0.95001857,2943.7,2942.7,0.95014812]
[1768952724390,3.39665282,2944.1,2942.7,0.95014812]
[1768952724391,0.95001857,2944.0,2942.7,0.95014812]
[1768952724826,0.95001857,2944.0,2942.8,0.95014812]
[1768952725327,0.97835794,2944.2,2942.8,0.95014812]
[1768952725514,1.49001857,2944.2,2942.8,0.95014812]
[1768952725712,0.95001857,2944.1,2942.9,0.95014812]
[1768952726342,0.95001857,2944.1,2942.7,0.531]
[1768952727038,0.95001857,2944.1,2942.7,0.95014812]
[1768952728005,0.95001857,2944.2,2942.8,0.95014812]
[1768952728237,0.95001857,2944.2,2943.0,0.95014812]
[1768952729044,0.001,2943.8,2943.0,0.95014812]
[1768952730338,0.95101857,2943.8,2943.0,0.95014812]
[1768952730520,0.95101857,2943.8,2942.5,0.95014812]
[1768952730838,0.95101857,2943.8,2942.6,0.95014812]
[1768952731202,0.95101857,2943.8,2942.4,0.95014812]
[1768952731203,0.95001857,2943.6,2942.4,0.95014812]
[1768952732351,0.95001857,2943.4,2942.4,0.95014812]
[1768952732633,0.95001857,2943.2,2942.4,0.95014812]
[1768952733017,0.77446508,2943.3,2942.4,0.95014812]
[1768952733423,1.72448365,2943.3,2942.4,0.95014812]
[1768952734323,5.12209074,2943.3,2942.4,0.95014812]
[1768952734522,4.34762566,2943.3,2942.4,0.95014812]
[1768952735112,0.95001857,2943.2,2942.4,0.95014812]
[1768952735307,0.95001857,2943.2,2942.1,0.531]
[1768952735512,0.95001857,2943.2,2942.1,1.48114812]
[1768952735810,1.38478114,2943.1,2942.2,0.95014812]
[1768952736216,0.95001857,2943.1,2942.2,0.95014812]
[1768952737531,3.39760366,2943.3,2942.2,0.95014812]
[1768952737532,4.34762223,2943.3,2942.2,0.95014812]
[1768952737941,0.95001857,2943.3,2942.2,0.95014812]
[1768952738253,4.88714834,2943.7,2942.3,0.95014812]
[1768952738455,0.95001857,2943.7,2942.5,0.95014812]
[1768952738661,0.43480277,2943.7,2942.7,0.95014812]
[1768952739154,0.95001857,2943.6,2942.0,0.95015423]
[1768952739334,0.95001857,2943.6,2942.2,0.95014812]
[1768952739963,0.95001857,2943.6,2942.3,0.95014812]
[1768952740148,0.95001857,2943.6,2942.5,0.95014812]
[1768952740448,0.001,2942.9,2942.5,0.95014812]
[1768952741765,4.78195947,2943.7,2942.5,0.95014812]
[1768952743151,0.95001857,2943.6,2942.5,0.95014812]
[1768952744873,0.43480277,2943.7,2942.6,0.95186411]
[1768952745034,3.39797991,2943.8,2942.8,0.90619087]
[1768952745369,0.90755495,2943.7,2942.8,0.90619087]
[1768952745668,0.90755495,2943.7,2942.6,0.90619087]
[1768952746944,0.90755495,2943.5,2942.6,0.90619087]
[1768952747264,0.90755495,2943.3,2942.6,0.90619087]
[1768952747652,0.90755495,2943.3,2942.4,0.90619087]
[1768952749166,0.90755495,2943.5,2942.4,0.90619087]
[1768952751168,0.90755495,2943.5,2942.5,0.90619087]
[1768952751341,0.90855495,2943.8,2942.5,0.90619087]
[1768952751544,0.90755495,2943.7,2942.5,0.90619087]
[1768952752474,0.001,2943.3,2942.5,0.90619087]
[1768952753261,0.001,2943.8,2942.8,0.90619087]
[1768952753660,0.90855495,2943.8,2942.8,0.43045461]
[1768952753874,0.90755495,2943.7,2942.4,1.43719087]
[1768952754185,0.90755495,2943.7,2942.5,0.90619087]
[1768952754495,0.90755495,2943.5,2942.3,0.90619087]
[1768952754671,0.90755495,2943.3,2942.3,0.90619087]
[1768952756998,0.90755495,2943.2,2942.3,0.90619087]
[1768952759206,0.90755495,2943.1,2942.3,0.90619087]
[1768952760108,3.39747228,2943.4,2942.3,0.90619087]
[1768952760109,0.90755495,2943.4,2942.3,0.90619087]
[1768952760286,0.54,2943.4,2942.4,0.90619087]
[1768952760486,0.90755495,2943.3,2942.4,0.90619087]
[1768952761613,0.90755495,2943.2,2942.4,0.90619087]
[1768952764188,0.90755495,2943.2,2942.6,0.002]
[1768952764690,0.43050337,2943.3,2942.6,0.90819087]
[1768952764879,1.33905832,2943.3,2942.6,0.90819087]
[1768952765793,0.90855495,2943.3,2942.6,0.90819087]
[1768952768136,0.90755495,2943.2,2942.6,0.002]
[1768952769742,0.90755495,2943.1,2942.6,0.002]
[1768952770633,0.90755495,2943.1,2942.4,0.002]
[1768952771215,1.44755495,2943.1,2942.4,0.002]
[1768952771418,1.39208167,2943.0,2942.4,0.90819087]
[1768952773140,0.54,2943.1,2942.4,0.90819087]
[1768952773443,0.001,2943.3,2942.4,0.90819087]
[1768952773613,0.90855495,2943.8,2942.6,0.90619087]
[1768952773802,0.90855495,2943.8,2942.8,0.90619087]
[1768952774617,0.001,2943.8,2942.8,0.90619087]
[1768952775635,0.001,2943.8,2943.0,0.96181372]
[1768952775837,0.05,2944.8,2943.0,0.96181372]
[1768952775838,0.95464271,2944.4,2943.0,0.96181372]
[1768952776134,1.49464271,2944.5,2943.0,0.96181372]
[1768952776640,1.49464271,2944.5,2943.2,0.96181372]
[1768952776802,1.49464271,2944.5,2943.1,6.7955557]
[1768952776803,1.49464271,2944.5,2943.4,0.96181372]
[1768952777642,0.54,2944.5,2943.4,0.96181372]
[1768952777942,0.001,2943.6,2943.4,0.96181372]
[1768952778109,0.54,2944.5,2943.4,0.96181372]
[1768952779909,0.54,2944.5,2943.4,4.35922038]
[1768952780106,0.95464271,2944.4,2943.6,0.96181372]
[1768952783041,0.95464271,2944.3,2943.0,0.96181372]
[1768952783455,0.95464271,2944.5,2943.5,0.96181372]
[1768952783742,0.95464271,2944.5,2943.7,0.96181372]
[1768952784314,0.95464271,2944.4,2943.5,0.96181372]
[1768952784743,0.95464271,2944.4,2943.1,0.96181372]
[1768952785517,0.95464271,2944.2,2943.1,0.96181372]
[1768952785725,0.95464271,2944.0,2943.1,0.96181372]
[1768952787413,0.95464271,2943.8,2943.1,0.96181372]
[1768952788835,0.95464271,2943.8,2942.8,0.002]
[1768952788836,0.95464271,2943.7,2942.9,0.96181372]
[1768952789036,3.39705173,2943.8,2942.5,0.002]
[1768952789037,0.95464271,2943.3,2942.5,0.002]
[1768952790069,0.95464271,2943.2,2942.5,4.08e-06]
[1768952790269,0.33970517,2943.7,2942.5,4.08e-06]
[1768952790270,0.95464271,2943.0,2942.5,4.08e-06]
[1768952790483,0.95464271,2942.9,2942.5,4.08e-06]
[1768952790841,4.35274143,2942.9,2942.5,4.08e-06]
[1768952791042,0.48937414,2942.8,2942.5,4.08e-06]
[1768952791279,1.44401685,2942.8,2942.5,4.08e-06]
[1768952792055,1.44401685,2942.8,2942.4,0.002]
[1768952792056,1.44401685,2942.8,2942.0,6.11e-06]
[1768952792951,3.88755892,2942.8,2942.0,6.11e-06]
[1768952793155,0.95464271,2942.7,2942.0,6.11e-06]
[1768952793357,0.95464271,2942.5,2942.0,6.11e-06]
[1768952793665,0.95464271,2942.4,2942.0,6.11e-06]
[1768952794277,0.95464271,2942.4,2941.7,0.96381372]
[1768952794586,0.95464271,2942.4,2941.7,0.002]
[1768952794962,0.95464271,2942.2,2941.4,0.002]
[1768952795162,0.95464271,2942.0,2941.4,0.002]
[1768952795362,0.95464271,2941.9,2941.2,0.002]
[1768952797191,0.95464271,2941.8,2941.2,0.002]
[1768952799670,0.541,2942.0,2941.2,0.96381372]
[1768952800102,3.94005325,2942.0,2941.2,0.96381372]
[1768952800270,0.4894696,2941.9,2941.2,0.96381372]
[1768952800663,0.541,2942.1,2941.2,0.96381372]
[1768952800869,1.49564271,2942.1,2941.2,0.96381372]
[1768952801698,4.89460049,2942.1,2941.2,0.96381372]
[1768952802287,4.89460049,2942.1,2941.4,0.002]
[1768952802590,0.001,2941.8,2941.4,0.002]
[1768952804475,0.95564271,2941.8,2941.4,0.002]
[1768952804698,0.94339855,2941.7,2941.4,0.002]
[1768952804897,0.43648293,2941.8,2941.4,0.002]
[1768952807512,1.37791995,2941.8,2941.4,0.002]
[1768952808012,0.94143702,2941.7,2941.4,0.002]
[1768952808795,1.48243702,2941.7,2941.4,0.002]
[1768952808994,0.541,2941.7,2941.4,0.95670098]
[1768952812012,0.542,2941.8,2941.4,0.95670098]
[1768952813793,0.001,2941.8,2941.4,0.95670098]
[1768952814683,0.001,2941.5,2941.4,0.95670098]
[1768952816524,0.001,2941.5,2941.4,0.002]
[1768952817525,0.001,2941.8,2941.4,0.002]
[1768952817526,0.001,2941.8,2941.5,0.95470098]
[1768952819432,0.001,2941.8,2941.4,0.002]
[1768952819633,0.94243702,2941.8,2941.4,0.002]
[1768952819933,0.94243702,2941.8,2941.2,2.04e-06]
[1768952821433,0.94143702,2941.7,2941.2,2.04e-06]
[1768952821815,0.43515829,2941.8,2941.2,0.95470302]
[1768952822012,0.001,2941.8,2941.2,0.95470302]
[1768952823031,0.001,2941.8,2941.2,2.04e-06]
[1768952823319,0.001,2941.8,2940.8,0.95670098]
[1768952823320,0.94143702,2941.6,2940.8,0.002]
[1768952823502,0.94143702,2941.4,2940.8,0.002]
[1768952823821,0.94143702,2941.4,2940.5,0.002]
[1768952824020,0.94143702,2941.4,2939.1,11.07047789]
[1768952824021,0.94143702,2941.0,2940.0,0.95670098]
[1768952824224,0.94143702,2940.9,2940.0,0.95670098]
[1768952824547,0.94143702,2940.9,2939.1,0.17754851]
[1768952824548,0.94143702,2940.9,2939.8,0.94671321]
[1768952825125,0.541,2941.0,2939.8,1.38155983]
[1768952825126,0.94143702,2940.7,2939.8,1.38155983]
[1768952825298,0.94143702,2940.7,2939.8,0.94671321]
[1768952826224,0.94143702,2940.7,2939.6,0.95470098]
[1768952826428,0.94143702,2940.5,2939.2,0.95470098]
[1768952826626,0.94143702,2940.3,2939.2,0.95470098]
[1768952827231,0.94143702,2940.1,2939.2,0.95470098]
[1768952827419,0.94143702,2939.9,2938.8,0.95470098]
[1768952827624,0.94143702,2939.7,2938.8,0.95470098]
[1768952828826,0.94143702,2939.7,2938.2,3.40337035]
[1768952829033,0.94143702,2939.7,2938.4,0.95470098]
[1768952829342,0.94143702,2939.6,2938.5,0.95470098]
[1768952829551,0.94143702,2939.4,2938.5,0.95470098]
[1768952830217,0.94143702,2939.4,2938.3,0.95470098]
[1768952831063,0.94143702,2939.2,2938.3,0.95470098]
[1768952831213,3.40251786,2939.0,2938.3,0.95470098]
[1768952831556,1.48243702,2939.1,2938.3,0.90470098]
[1768952831727,0.541,2939.1,2938.3,0.90470098]
[1768952831927,1.17500732,2939.9,2938.4,0.95470098]
[1768952832119,0.43425662,2940.0,2938.6,0.95470098]
[1768952832318,2.053748,2940.0,2938.6,0.95470098]
[1768952832529,0.541,2939.9,2938.6,0.95470098]
[1768952832739,0.94143702,2940.4,2938.6,0.95470098]
[1768952833058,0.541,2940.3,2938.6,0.95470098]
[1768952833251,0.541,2940.3,2938.8,0.95470098]
[1768952833455,0.541,2940.3,2939.0,0.95470098]
[1768952834830,0.94143702,2940.2,2939.0,0.95470098]
[1768952835236,0.541,2940.4,2939.2,0.92059755]
[1768952835681,1.45240435,2940.4,2939.2,0.92059755]
[1768952835886,0.91140435,2940.3,2939.2,0.92059755]
[1768952837070,0.91140435,2940.3,2939.0,0.92059755]
[1768952837369,0.91140435,2940.1,2938.7,4.32337465]
[1768952837571,1.68277062,2940.0,2938.9,0.92059755]
[1768952838148,0.91140435,2939.9,2938.5,0.43580294]
[1768952838349,0.91140435,2939.4,2937.7,0.92059755]
[1768952838564,0.91140435,2939.2,2938.0,0.92059755]
[1768952838762,0.541,2939.1,2938.2,0.92059755]
[1768952839140,1.45240435,2939.1,2938.2,0.92059755]
[1768952839361,3.40251786,2939.0,2938.2,0.92059755]
[1768952839562,0.48549222,2938.9,2938.2,0.92059755]
[1768952840158,1.45240435,2939.1,2938.2,0.92059755]
[1768952840567,4.85482462,2939.1,2938.2,0.92059755]
[1768952842370,7.34584054,2939.1,2938.2,0.92059755]
[1768952842546,0.91140435,2939.0,2938.2,0.92059755]
[1768952842738,0.91140435,2939.0,2937.8,0.92059755]
[1768952842941,0.91140435,2938.8,2937.8,0.92059755]
[1768952843382,0.82572449,2938.9,2937.9,0.92059755]
[1768952843545,1.45240435,2939.1,2938.0,0.92059755]
[1768952843546,0.91140435,2939.0,2938.0,0.92059755]
[1768952843945,0.91140435,2939.0,2938.1,0.92059755]
[1768952844773,4.31393599,2939.0,2938.1,0.92059755]
[1768952844973,0.91140435,2938.9,2938.1,0.92059755]
[1768952845192,0.91140435,2938.9,2937.8,0.92059755]
[1768952845481,1.34279795,2938.8,2937.8,0.92059755]
[1768952846175,4.74558197,2938.8,2937.8,0.92059755]
[1768952846341,1.34279795,2938.8,2937.8,4.32443229]
[1768952846543,0.541,2939.1,2937.9,0.92059755]
[1768952846971,1.45240435,2939.1,2937.9,0.92059755]
[1768952847562,4.8548644,2939.1,2937.9,0.92059755]
[1768952847765,6.33,2939.5,2938.0,6.80735194]
[1768952847990,7.59614044,2939.5,2938.2,0.92059755]
[1768952848680,1.26614044,2939.5,2938.2,0.92059755]
[1768952848849,0.542,2939.5,2938.2,0.92059755]